bitfinex/quotes_SOLUSD_20250226
["timestamp","ask_amount","ask_price","bid_price","bid_amount"]
[1740544237965,6.4991,144.98,144.9,45.31459536]
[1740544238368,6.4991,144.98,144.9,26.9013]
[1740544238546,13.3967,144.98,144.9,6.9013]
[1740544239250,13.3967,144.98,144.87,3.4159199]
[1740544239251,81.1,144.97,144.87,3.4159199]
[1740544239449,8.5086,144.95,144.87,6.9027]
[1740544239753,8.5086,144.95,144.86,96.09731001]
[1740544240368,1.0,144.94,144.86,82.75431001]
[1740544240672,6.2241,144.92,144.84,89.65811001]
[1740544240858,6.2241,144.92,144.84,82.75431001]
[1740544241055,81.1,144.91,144.84,89.65831001]
[1740544241255,81.1,144.91,144.84,82.75431001]
[1740544241577,6.9013,144.9,144.84,82.75431001]
[1740544242072,81.1,144.91,144.84,89.65841001]
[1740544242877,6.2241,144.92,144.85,0.12549]
[1740544243177,6.2241,144.92,144.85,151.07980001]
[1740544243356,6.2241,144.92,144.86,24.1612]
[1740544243560,6.2241,144.92,144.87,0.12549]
[1740544243772,1.6097,144.95,144.87,89.31980001]
[1740544244266,81.1,144.98,144.87,89.31980001]
[1740544244565,81.1,144.98,144.88,3.50264506]
[1740544245268,87.9975,144.98,144.89,6.9017]
[1740544245476,82.1,144.97,144.89,6.9017]
[1740544246778,6.8984,144.96,144.88,6.9022]
[1740544246961,81.1,144.95,144.88,6.9022]
[1740544247984,87.9989,144.95,144.88,6.9022]
[1740544249174,81.1,144.95,144.88,6.9022]
[1740544250382,81.1,144.95,144.88,24.1578]
[1740544252084,6.9275,144.98,144.88,106.91211001]
[1740544252386,7.9275,144.98,144.88,106.91211001]
[1740544253364,6.9275,144.98,144.88,106.91211001]
[1740544253566,7.9275,144.98,144.88,106.91211001]
[1740544254477,6.8984,144.96,144.88,89.65651001]
[1740544255181,81.1,144.95,144.88,6.9022]
[1740544255578,81.1,144.95,144.86,89.13431001]
[1740544255770,81.1,144.95,144.87,24.1595]
[1740544256584,81.1,144.97,144.88,0.12549]
[1740544256784,81.1,144.97,144.88,1.67219]
[1740544257778,81.1,144.97,144.89,24.1561]
[1740544258481,81.1,144.97,144.89,27.65580276]
[1740544260175,81.1,144.97,144.91,24.1528]
[1740544260375,0.03,144.98,144.91,106.90711001]
[1740544261099,0.03,144.98,144.91,113.28711001]
[1740544261606,0.03,144.98,144.92,18.90062886]
[1740544262593,0.03,144.98,144.93,24.1495]
[1740544264094,0.03,144.98,144.93,106.90381001]
[1740544264298,0.03,144.98,144.93,110.28128497]
[1740544272923,0.03,144.98,144.93,6.8998]
[1740544273115,0.03,144.98,144.9,6.9013]
[1740544273116,81.1,144.97,144.9,6.9013]
[1740544273409,81.1,144.96,144.86,6.9032]
[1740544273706,87.9991,144.95,144.86,89.65751001]
[1740544275315,81.1,144.94,144.86,6.9032]
[1740544275903,6.8998,144.93,144.86,6.9032]
[1740544276111,87.9998,144.93,144.86,6.9032]
[1740544277614,87.9998,144.93,144.85,82.81731001]
[1740544277821,81.1,144.92,144.85,6.9666]
[1740544278017,7.5843,144.91,144.85,0.063]
[1740544278399,81.1,144.9,144.85,0.063]
[1740544278733,81.1,144.89,144.85,0.063]
[1740544279094,81.1,144.89,144.85,6.9665]
[1740544279495,81.1,144.89,144.85,0.063]
[1740544279699,88.0018,144.89,144.85,0.063]
[1740544280502,81.1,144.88,144.85,0.063]
[1740544281316,81.1,144.87,144.85,0.063]
[1740544281612,81.1,144.86,144.85,0.063]
[1740544282619,88.0032,144.86,144.85,0.063]
[1740544283240,81.1,144.86,144.85,0.063]
[1740544284007,81.1,144.89,144.85,0.063]
[1740544286834,81.1,144.89,144.81,0.063]
[1740544286835,2.0,144.87,144.81,0.063]
[1740544287131,6.9036,144.85,144.81,0.063]
[1740544288814,6.9046,144.83,144.81,0.063]
[1740544289037,81.1,144.82,144.81,0.063]
[1740544290020,88.0051,144.82,144.81,0.063]
[1740544294839,81.1,144.9,144.81,84.53600001]
[1740544295732,81.1,144.9,144.82,18.77513886]
[1740544296066,81.1,144.9,144.83,3.53674428]
[1740544296543,81.13,144.95,144.84,25.25513886]
[1740544296733,81.13,144.95,144.84,176.20944887]
[1740544296933,81.13,144.95,144.86,0.12549]
[1740544297362,82.13,144.95,144.85,6.9036]
[1740544297651,81.13,144.95,144.85,6.9036]
[1740544298430,1.0,144.94,144.85,6.9036]
[1740544298624,107.80443886,144.95,144.85,6.9036]
[1740544298824,88.0293,144.95,144.85,6.9036]
[1740544299047,81.13,144.95,144.85,6.9036]
[1740544299225,82.1,144.94,144.85,6.9036]
[1740544299424,7.0245,144.9,144.82,6.9051]
[1740544299635,87.6,144.89,144.82,6.9051]
[1740544301051,94.5018,144.89,144.82,6.9051]
[1740544301425,100.87513886,144.88,144.81,0.063]
[1740544301740,14.4018,144.89,144.81,0.063]
[1740544301741,81.1,144.87,144.81,0.063]
[1740544302040,81.1,144.86,144.81,0.063]
[1740544304836,81.1,144.86,144.81,20.063]
[1740544305036,88.0032,144.86,144.81,20.063]
[1740544305237,88.0032,144.86,144.81,0.063]
[1740544305670,81.1,144.85,144.81,0.063]
[1740544306341,88.0039,144.85,144.81,0.063]
[1740544307663,81.1,144.85,144.81,0.063]
[1740544308978,81.1,144.88,144.81,0.063]
[1740544309461,88.0023,144.88,144.81,0.063]
[1740544310046,88.0323,144.88,144.81,0.063]
[1740544310357,81.1,144.87,144.81,0.063]
[1740544311264,82.1,144.87,144.81,0.063]
[1740544311450,74.165,144.87,144.81,0.063]
[1740544311646,6.9032,144.86,144.81,0.063]
[1740544312059,74.165,144.85,144.81,0.063]
[1740544312642,81.0688,144.85,144.81,0.063]
[1740544313950,74.165,144.85,144.81,0.063]
[1740544314548,81.0688,144.85,144.81,0.063]
[1740544314951,74.165,144.85,144.81,0.063]
[1740544317060,81.0688,144.85,144.81,0.063]
[1740544317567,74.165,144.84,144.81,0.063]
[1740544317764,74.165,144.83,144.81,0.063]
[1740544322464,81.0698,144.83,144.81,0.063]
[1740544322663,74.165,144.83,144.81,0.063]
[1740544326375,74.165,144.82,144.81,0.063]
[1740544329375,6.9047,144.83,144.81,0.063]
[1740544330452,13.3812,144.83,144.81,0.063]
[1740544331276,15.3812,144.83,144.81,0.063]
[1740544331677,19.77513886,144.82,144.81,0.063]
[1740544331865,20.77513886,144.82,144.81,0.063]
[1740544332175,20.77513886,144.82,144.74,0.063]
[1740544332379,20.0,144.79,144.74,0.063]
[1740544332565,6.907,144.78,144.74,0.063]
[1740544333558,9.72953816,144.78,144.74,0.063]
[1740544336982,6.907,144.78,144.74,0.063]
[1740544337278,34.5204,144.85,144.74,20.063]
[1740544337279,81.1,144.8,144.74,20.063]
[1740544338272,81.1,144.8,144.75,6.9084]
[1740544338996,88.0061,144.8,144.74,6.9717]
[1740544340088,81.1,144.8,144.74,0.063]
[1740544341488,81.1,144.79,144.74,0.063]
[1740544347988,81.1,144.79,144.75,1.5451]
[1740544348773,0.03,144.81,144.75,7.7093]
[1740544349284,0.03,144.81,144.76,0.12549]
[1740544349590,0.03,144.81,144.77,24.1762]
[1740544350583,0.03,144.81,144.78,18.90062886]
[1740544350771,0.03,144.87,144.8,0.12549]
[1740544350975,0.03,144.87,144.81,18.64964886]
[1740544351171,0.03,144.87,144.82,0.12549]
[1740544351371,0.03,144.87,144.83,1.5004]
[1740544351576,0.03,144.87,144.84,24.1645]
[1740544352167,0.03,144.87,144.84,6.9041]
[1740544353174,0.03,144.87,144.85,18.77513886]
[1740544353381,0.03,144.87,144.86,6.3289]
[1740544353587,0.03,144.87,144.86,25.10403886]
[1740544353778,81.13,144.95,144.87,44.52253886]
[1740544354867,81.13,144.95,144.87,127.27684887]
[1740544355278,0.03,144.95,144.88,0.12549]
[1740544355485,0.03,144.95,144.88,1.16033903]
[1740544355788,0.03,144.95,144.91,6.9008]
[1740544355992,0.03,144.95,144.93,8.0515]
[1740544356176,0.03,144.95,144.94,18.77513886]
[1740544357599,0.03,144.95,144.92,6.34]
[1740544358383,0.03,144.95,144.92,13.2401]
[1740544360384,0.03,144.95,144.94,0.25098]
[1740544361082,0.03,144.95,144.94,83.00529001]
[1740544361581,0.03,144.98,144.97,20.12549]
[1740544361773,0.03,144.98,144.97,109.36529001]
[1740544362170,0.03,144.98,144.97,116.26319001]
[1740544365197,0.03,144.98,144.97,82.75431001]
[1740544365834,0.03,145.01,144.97,82.75431001]
[1740544366043,0.03,145.01,144.94,27.05364886]
[1740544366451,87.9966,145.0,144.92,6.36]
[1740544366739,87.9966,145.0,144.9,1.5426]
[1740544366740,1.5145,144.99,144.9,1.5426]
[1740544366924,81.1,144.98,144.89,6.36]
[1740544367237,81.1,144.98,144.89,13.2615]
[1740544367441,81.1,144.98,144.9,0.12549]
[1740544367737,81.1,144.98,144.9,18.77513886]
[1740544368523,87.9975,144.98,144.91,6.9008]
[1740544369219,87.9975,144.98,144.89,6.36]
[1740544369948,87.9975,144.98,144.89,13.2616]
[1740544370360,81.1,144.97,144.89,6.36]
[1740544370654,6.4166,144.95,144.88,0.063]
[1740544370834,81.1,144.94,144.88,0.063]
[1740544371513,1.6315,144.92,144.88,0.063]
[1740544371854,81.1,144.91,144.88,0.063]
[1740544372833,88.001,144.91,144.88,0.063]
[1740544374127,81.1,144.9,144.88,0.063]
[1740544375140,88.0013,144.9,144.88,0.063]
[1740544378944,87.4928,144.89,144.88,0.063]
[1740544379242,6.3928,144.89,144.88,0.063]
[1740544380341,13.2945,144.89,144.88,0.063]
[1740544382045,32.06963886,144.89,144.88,0.063]
[1740544382744,13.2945,144.89,144.88,0.063]
[1740544382947,18.8828,144.92,144.88,0.063]
[1740544382948,6.9009,144.91,144.88,0.063]
[1740544383532,15.1695,144.92,144.88,0.063]
[1740544383945,81.1,144.9,144.88,0.063]
[1740544386450,81.1,144.92,144.88,0.063]
[1740544386662,6.8997,144.94,144.88,0.063]
[1740544386663,81.1,144.94,144.88,0.063]
[1740544386948,81.1,144.96,144.88,18.83813886]
[1740544387155,81.1,144.97,144.89,0.12549]
[1740544387763,81.1,144.97,144.88,101.59244887]
[1740544387920,87.9981,144.97,144.88,82.81731001]
[1740544388330,81.1,144.96,144.88,6.9652]
[1740544388533,81.1,144.96,144.88,0.063]
[1740544389232,81.1,144.96,144.88,6.9651]
[1740544389834,82.1,144.96,144.88,0.063]
[1740544390028,6.0316,144.93,144.88,0.063]
[1740544390336,88.0007,144.92,144.88,0.063]
[1740544392453,81.1,144.92,144.88,0.063]
[1740544393152,88.0004,144.92,144.88,0.063]
[1740544393929,81.1,144.92,144.88,0.063]
[1740544394884,81.1,144.91,144.88,0.063]
[1740544397954,88.001,144.91,144.88,0.063]
[1740544398257,81.1,144.91,144.88,0.063]
[1740544400662,81.1,144.9,144.88,0.063]
[1740544400873,81.1,144.89,144.88,0.063]
[1740544410279,81.1,144.92,144.88,0.063]
[1740544413049,81.1,144.94,144.88,1.80159]
[1740544413248,81.1,144.94,144.89,18.64964886]
[1740544413467,81.1,144.97,144.9,24.1545]
[1740544413658,81.1,144.97,144.91,18.77513886]
[1740544414165,81.1,144.97,144.9,24.1545]
[1740544414671,81.1,144.97,144.9,6.9013]
[1740544415670,81.1,144.96,144.9,6.9013]
[1740544415966,87.9985,144.96,144.9,6.9013]
[1740544416271,81.1,144.96,144.9,6.9013]
[1740544416964,81.1,144.96,144.9,24.1545]
[1740544417966,81.1,144.96,144.9,6.9013]
[1740544418164,81.1,144.95,144.9,6.9013]
[1740544418365,81.1,144.95,144.89,6.9017]
[1740544419468,87.9993,144.95,144.89,6.9017]
[1740544419870,87.9993,144.95,144.88,1.6761]
[1740544419871,81.1,144.94,144.88,0.063]
[1740544420074,81.1,144.93,144.88,0.063]
[1740544420370,81.1,144.92,144.88,0.063]
[1740544421074,81.1,144.91,144.88,0.063]
[1740544421277,81.1,144.9,144.88,0.063]
[1740544421853,88.0014,144.9,144.88,0.063]
[1740544423778,81.1,144.89,144.88,0.063]
[1740544424781,81.1,144.89,144.81,1.5002]
[1740544424782,18.77513886,144.89,144.78,13.8368]
[1740544424969,87.4,144.88,144.78,13.8368]
[1740544425169,87.4,144.88,144.78,6.9068]
[1740544425481,6.9027,144.87,144.78,6.9068]
[1740544425677,24.1595,144.87,144.77,19.44509328]
[1740544425865,81.1,144.86,144.77,19.44509328]
[1740544426066,81.1,144.85,144.77,8.5925]
[1740544426795,89.6693,144.84,144.77,0.063]
[1740544427097,6.3,144.83,144.77,0.063]
[1740544427259,81.1,144.82,144.77,0.063]
[1740544428274,81.1,144.81,144.77,0.063]
[1740544429064,81.1,144.8,144.77,0.063]
[1740544429436,81.1,144.79,144.77,0.063]
[1740544430094,114.03963886,144.78,144.77,0.063]
[1740544430273,95.2645,144.78,144.77,0.063]
[1740544430596,114.03963886,144.78,144.77,0.063]
[1740544430790,117.48394458,144.78,144.77,0.063]
[1740544431096,124.39094458,144.78,144.77,0.063]
[1740544431670,105.61580572,144.78,144.77,0.063]
[1740544431869,98.70880572,144.78,144.77,0.063]
[1740544432779,105.61580572,144.78,144.77,0.063]
[1740544432981,125.39094458,144.78,144.77,0.063]
[1740544433163,124.39094458,144.78,144.77,0.063]
[1740544433362,24.51580572,144.78,144.77,0.063]
[1740544437874,43.29094458,144.78,144.77,0.063]
[1740544438077,44.29094458,144.78,144.77,0.063]
[1740544438289,45.29094458,144.78,144.77,0.063]
[1740544439383,43.29094458,144.78,144.77,0.063]
[1740544440291,22.85060572,144.78,144.77,0.063]
[1740544441064,19.4063,144.78,144.77,0.063]
[1740544444385,41.65478504,144.78,144.77,0.063]
[1740544444891,42.47254244,144.78,144.77,0.063]
[1740544445100,43.47254244,144.78,144.77,0.0001]
[1740544445289,0.12549,144.73,144.7,0.063]
[1740544445481,6.3,144.72,144.7,0.063]
[1740544446170,7.3,144.72,144.7,0.063]
[1740544446370,6.9103,144.71,144.7,0.063]
[1740544447173,13.21,144.72,144.7,0.063]
[1740544447477,16.64329212,144.72,144.7,0.063]
[1740544449695,106.78543886,144.71,144.7,0.063]
[1740544449895,112.94333886,144.71,144.7,0.063]
[1740544450594,113.94333886,144.71,144.7,0.063]
[1740544451896,114.94333886,144.71,144.7,0.063]
[1740544452484,235.31213886,144.7,144.69,0.063]
[1740544452689,19.77513886,144.7,144.69,0.063]
[1740544452890,18.77513886,144.7,144.69,0.063]
[1740544453396,25.68593886,144.7,144.69,0.063]
[1740544454401,6.9108,144.7,144.69,0.063]
[1740544455103,140.811,144.75,144.69,0.063]
[1740544455299,3.4306451,144.73,144.69,0.063]
[1740544455499,10.3400451,144.73,144.69,0.063]
[1740544455677,3.4306451,144.73,144.69,0.063]
[1740544456284,6.9092,144.74,144.69,0.063]
[1740544456995,10.35506762,144.74,144.69,0.063]
[1740544458108,25.68493886,144.73,144.69,0.063]
[1740544458486,20.0,144.7,144.69,0.063]
[1740544459189,26.9108,144.7,144.69,0.063]
[1740544460185,20.0,144.7,144.69,0.063]
[1740544460813,6.91,144.72,144.69,0.063]
[1740544461110,25.68463886,144.73,144.69,0.063]
[1740544461281,20.0,144.7,144.69,0.063]
[1740544464515,45.68593886,144.7,144.69,0.063]
[1740544464687,48.19553886,144.7,144.69,0.063]
[1740544465007,49.19553886,144.7,144.66,0.063]
[1740544465208,66.47263886,144.7,144.66,0.063]
[1740544465600,2.12549,144.66,144.63,0.063]
[1740544465805,18.77513886,144.64,144.59,0.063]
[1740544465985,21.4808767,144.64,144.59,0.063]
[1740544466523,25.68923886,144.63,144.59,0.063]
[1740544466688,20.0,144.63,144.59,0.063]
[1740544467492,6.3,144.65,144.59,0.063]
[1740544468313,6.3,144.65,144.6,20.0]
[1740544468614,21.49500284,144.69,144.61,6.9151]
[1740544468615,6.9119,144.68,144.61,6.9151]
[1740544469001,10.43640658,144.68,144.61,6.9151]
[1740544470297,3.52450658,144.68,144.61,6.9151]
[1740544470611,6.3,144.69,144.61,24.2029]
[1740544470810,13.2114,144.69,144.61,24.2029]
[1740544471409,6.3,144.69,144.61,24.2029]
[1740544471917,10.37064638,144.7,144.61,24.2029]
[1740544472414,81.1,144.68,144.61,24.2029]
[1740544473709,81.1,144.68,144.63,7.9708]
[1740544474822,81.1,144.68,144.64,6.9137]
[1740544476432,10.41897753,144.71,144.64,6.9137]
[1740544476433,81.1,144.67,144.64,6.9137]
[1740544477425,81.1,144.67,144.64,24.1979]
[1740544479712,81.1,144.66,144.63,8.4336]
[1740544482021,81.1,144.66,144.63,25.719]
[1740544482405,80.660106,144.66,144.63,25.719]
[1740544486129,80.660106,144.66,144.63,8.4336]
[1740544486339,80.660106,144.65,144.63,8.4336]
[1740544486643,80.660106,144.64,144.62,6.9775]
[1740544487821,80.660106,144.64,144.62,0.063]
[1740544488647,80.660106,144.63,144.62,0.063]
[1740544490024,20.0,144.63,144.62,0.063]
[1740544491425,26.3,144.63,144.62,0.063]
[1740544492013,33.2141,144.63,144.62,0.063]
[1740544492332,51.98923886,144.63,144.62,0.063]
[1740544493830,52.98923886,144.63,144.62,0.063]
[1740544494740,57.49872096,144.63,144.62,0.063]
[1740544495050,57.49872096,144.63,144.62,0.0001]
[1740544495722,18.77513886,144.6,144.59,0.063]
[1740544496450,19.77513886,144.6,144.59,0.063]
[1740544497535,26.69073886,144.6,144.59,0.063]
[1740544498412,27.69073886,144.6,144.59,0.063]
[1740544498612,20.0,144.56,144.55,0.063]
[1740544499033,38.77513886,144.56,144.55,0.063]
[1740544500925,45.69263886,144.56,144.55,0.063]
[1740544502035,49.2315608,144.56,144.55,0.063]
[1740544502418,52.03234926,144.56,144.55,0.063]
[1740544503936,49.2315608,144.56,144.55,0.063]
[1740544504239,51.97347549,144.56,144.54,0.063]
[1740544504837,51.97347549,144.56,144.43,0.063]
[1740544504838,0.12549,144.49,144.43,0.063]
[1740544505020,81.1,144.48,144.43,0.063]
[1740544505216,81.1,144.47,144.43,0.063]
[1740544505923,6.9223,144.46,144.43,0.063]
[1740544506329,81.1,144.45,144.43,0.063]
[1740544506540,6.9223,144.46,144.43,0.063]
[1740544506541,81.1,144.44,144.43,0.063]
[1740544508018,25.07513886,144.44,144.43,0.063]
[1740544508235,25.07513886,144.44,144.4,0.063]
[1740544508417,99.87513886,144.43,144.4,0.063]
[1740544509536,3.43104255,144.42,144.4,0.063]
[1740544510431,10.35564255,144.42,144.4,0.063]
[1740544510627,81.1,144.41,144.4,0.063]
[1740544510823,3.43104255,144.42,144.4,0.063]
[1740544511023,20.0,144.41,144.4,0.063]
[1740544511729,6.3,144.44,144.4,0.063]
[1740544512558,137.93649853,144.46,144.4,0.063]
[1740544513033,144.85899853,144.46,144.4,0.063]
[1740544514718,18.77513886,144.45,144.4,0.063]
[1740544515140,20.0,144.42,144.4,0.063]
[1740544516041,81.1,144.41,144.4,0.063]
[1740544516225,25.07513886,144.41,144.4,0.063]
[1740544518350,31.99983886,144.41,144.4,0.063]
[1740544526685,20.0,144.41,144.4,0.063]
[1740544529955,45.69983886,144.41,144.4,0.063]
[1740544533258,25.69983886,144.41,144.4,0.063]
[1740544535068,19.77513886,144.4,144.37,0.063]
[1740544535255,128.39,144.43,144.37,0.063]
[1740544536444,135.3138,144.43,144.37,6.9896]
[1740544538446,135.3138,144.43,144.4,0.063]
[1740544538640,81.1,144.42,144.4,0.063]
[1740544543345,81.1,144.41,144.4,0.063]
[1740544545180,88.0247,144.41,144.4,0.063]
[1740544545373,106.79983886,144.41,144.4,0.063]
[1740544546455,25.69983886,144.41,144.4,0.063]
[1740544547480,26.69983886,144.41,144.4,0.063]
[1740544549485,30.23613473,144.41,144.4,0.063]
[1740544549889,29.23613473,144.41,144.4,0.063]
[1740544550298,29.26613473,144.41,144.4,0.063]
[1740544550476,46.57793473,144.41,144.37,0.063]
[1740544551471,25.70073886,144.39,144.37,0.063]
[1740544551685,81.1,144.38,144.37,0.063]
[1740544551875,0.03,144.41,144.37,0.063]
[1740544552258,25.60444886,144.41,144.37,0.063]
[1740544552514,18.77513886,144.4,144.37,0.063]
[1740544553566,0.12549,144.38,144.37,0.063]
[1740544554772,20.12549,144.35,144.31,0.063]
[1740544554972,18.64964886,144.34,144.31,0.063]
[1740544555175,0.12549,144.33,144.31,0.063]
[1740544555687,7.05439,144.33,144.31,0.063]
[1740544556072,88.15439,144.33,144.31,0.063]
[1740544556558,18.64964886,144.32,144.31,0.063]
[1740544556762,18.77513886,144.32,144.31,0.063]
[1740544557484,0.12549,144.32,144.31,0.063]
[1740544557659,45.70413886,144.32,144.31,0.063]
[1740544560406,174.10413886,144.32,144.31,0.063]
[1740544566177,180.42413886,144.32,144.31,0.063]
[1740544569010,181.42413886,144.32,144.31,0.063]
[1740544569508,20.0,144.29,144.28,0.063]
[1740544569687,38.77513886,144.29,144.25,0.063]
[1740544570392,18.77513886,144.27,144.25,0.063]
[1740544570604,6.32,144.26,144.25,0.063]
[1740544570794,25.09513886,144.26,144.25,0.063]
[1740544572716,13.2519,144.26,144.25,0.063]
[1740544572891,6.32,144.26,144.25,0.063]
[1740544573594,6.931,144.28,144.25,0.063]
[1740544574113,6.32,144.29,144.25,0.063]
[1740544574315,81.1,144.26,144.25,0.063]
[1740544574607,81.1,144.26,144.25,1.6904]
[1740544575208,81.1,144.26,144.25,8.6228]
[1740544577005,81.1,144.26,144.25,1.6904]
[1740544578787,25.09513886,144.27,144.25,0.063]
[1740544580313,25.70703886,144.26,144.25,0.063]
[1740544581114,18.77513886,144.25,144.22,0.063]
[1740544582512,18.64964886,144.23,144.22,0.063]
[1740544583418,7.05879,144.23,144.16,0.063]
[1740544583613,6.44549,144.22,144.16,0.063]
[1740544584418,18.64964886,144.21,144.16,0.063]
[1740544585196,0.12549,144.2,144.16,0.063]
[1740544585399,18.77513886,144.18,144.16,0.063]
[1740544587118,128.5,144.21,144.16,0.063]
[1740544587417,135.4348,144.21,144.16,0.063]
[1740544587810,18.77513886,144.2,144.16,0.063]
[1740544588312,25.71033886,144.2,144.16,0.063]
[1740544591223,18.77513886,144.16,144.1,0.063]
[1740544591526,18.77513886,144.14,144.1,0.063]
[1740544592420,20.0,144.11,144.1,0.063]
[1740544593119,6.32,144.15,144.1,0.063]
[1740544593534,18.77513886,144.14,144.1,0.063]
[1740544594105,20.0,144.11,144.1,0.063]
[1740544594546,18.77513886,144.12,144.1,0.063]
[1740544594709,6.32,144.15,144.1,0.063]
[1740544596228,6.32,144.16,144.1,0.063]
[1740544596812,110.14888689,144.2,144.11,7.9011]
[1740544596813,6.32,144.19,144.11,7.9011]
[1740544596999,87.42,144.19,144.11,7.9011]
[1740544597206,18.77513886,144.18,144.11,7.9011]
[1740544598229,18.77513886,144.18,144.11,14.8398]
[1740544598230,25.71103886,144.18,144.11,14.8398]
[1740544598640,18.77513886,144.18,144.11,14.8398]
[1740544598940,87.42,144.19,144.11,14.8398]
[1740544599250,18.77513886,144.18,144.11,14.8398]
[1740544600038,25.71123886,144.18,144.11,14.8398]
[1740544601632,25.71123886,144.18,144.11,7.9011]
[1740544601840,25.71123886,144.18,144.11,1.5098]
[1740544601841,106.81123886,144.18,144.11,1.5098]
[1740544603441,18.77513886,144.16,144.11,1.5098]
[1740544604445,25.71223886,144.16,144.11,1.5098]
[1740544605824,25.71223886,144.16,144.1,0.063]
[1740544606648,20.0,144.13,144.1,0.063]
[1740544606849,26.32,144.13,144.1,0.063]
[1740544607729,33.2585,144.13,144.1,0.063]
[1740544608746,18.77513886,144.12,144.1,0.063]
[1740544608947,25.71383886,144.12,144.1,0.063]
[1740544609848,25.71383886,144.12,144.11,0.063]
[1740544610531,6.32,144.13,144.11,0.063]
[1740544612026,13.2582,144.13,144.11,0.063]
[1740544613927,6.32,144.13,144.11,0.063]
[1740544617634,81.1,144.15,144.11,0.063]
[1740544618944,81.1,144.15,144.11,7.0021]
[1740544620631,81.1,144.14,144.11,7.0021]
[1740544620926,81.1,144.14,144.11,0.063]
[1740544621347,88.0378,144.14,144.11,0.063]
[1740544622556,18.77513886,144.13,144.11,0.063]
[1740544622738,25.71343886,144.13,144.11,0.063]
[1740544623349,81.1,144.14,144.11,0.063]
[1740544625364,0.03,144.16,144.11,0.063]
[1740544625365,81.1,144.13,144.11,0.063]
[1740544625753,81.1,144.13,144.12,1.6457]
[1740544626638,81.1,144.13,144.12,8.5843]
[1740544629137,81.1,144.13,144.12,1.6457]
[1740544629569,81.1,144.13,144.11,0.063]
[1740544629961,81.1,144.12,144.11,0.063]
[1740544631473,18.77513886,144.13,144.11,0.063]
[1740544632962,38.77513886,144.12,144.11,0.063]
[1740544633736,20.0,144.12,144.11,0.063]
[1740544635365,19.0,144.12,144.11,0.063]
[1740544635934,37.77513886,144.12,144.11,0.063]
[1740544636265,44.71373886,144.12,144.11,0.063]
[1740544637861,13.2867,144.16,144.11,0.063]
[1740544638269,20.0,144.13,144.11,0.063]
[1740544639241,20.0,144.12,144.11,0.063]
[1740544639452,119.87513886,144.12,144.11,0.063]
[1740544640555,126.81373886,144.12,144.11,0.063]
[1740544644272,45.71373886,144.12,144.11,0.063]
[1740544645567,20.0,144.12,144.11,0.063]
[1740544645773,6.9377,144.14,144.11,0.063]
[1740544646071,0.03,144.12,144.11,0.063]
[1740544671705,0.03,144.12,144.11,1.6128]